bitfinex/quotes_ETHUSD_20250126
["timestamp","ask_amount","ask_price","bid_price","bid_amount"]
[1737867090788,0.04832641,3348.5,3347.9,2.98689]
[1737867090985,0.04832641,3348.5,3347.8,2.98701]
[1737867091184,0.04832641,3348.5,3348.0,2.98681]
[1737867092949,0.8179,3348.4,3348.0,2.98681]
[1737867093142,0.04822,3348.3,3348.0,2.98681]
[1737867094258,0.04822,3348.3,3347.5,3.8311]
[1737867094386,0.04822,3348.3,3347.7,2.98711]
[1737867095093,0.8179,3348.2,3347.5,5.98722]
[1737867095385,0.04817617,3348.1,3347.6,2.98718]
[1737867098067,0.04817617,3348.1,3347.7,2.98704]
[1737867098432,0.04817617,3348.1,3347.7,2.98706]
[1737867098851,0.04817617,3348.1,3347.7,0.597433]
[1737867099057,0.04817617,3348.1,3348.0,2.98685]
[1737867099413,0.7702,3348.4,3348.0,2.98685]
[1737867100063,0.0482092,3348.3,3348.0,2.98685]
[1737867100475,0.0482092,3348.3,3347.8,2.98702]
[1737867103172,0.0482092,3348.3,3347.5,0.7711]
[1737867103344,0.0482092,3348.3,3347.9,2.98687]
[1737867104729,0.0482092,3348.3,3347.6,0.675858]
[1737867105038,0.0482092,3348.3,3348.0,2.98685]
[1737867105239,0.0482092,3348.3,3348.2,2.98667]
[1737867106945,0.0482092,3348.3,3347.9,2.98692]
[1737867109437,0.0482092,3348.3,3347.9,3.6519098]
[1737867109982,0.0482092,3348.3,3348.0,2.98684]
[1737867111350,0.0482092,3348.3,3348.2,2.98667]
[1737867111947,0.8055,3348.8,3348.2,0.8296]
[1737867112130,0.04686316,3348.7,3348.4,2.98642]
[1737867112333,0.8055,3348.8,3348.4,2.98642]
[1737867112565,0.04689555,3348.7,3348.4,2.98642]
[1737867112761,0.8055,3348.8,3348.4,2.98642]
[1737867112968,0.04689555,3348.7,3348.4,2.98642]
[1737867113286,0.8055,3348.8,3348.4,2.98642]
[1737867113448,0.04684235,3348.6,3348.4,2.98642]
[1737867113650,0.8055,3348.8,3348.5,2.98641]
[1737867116567,0.7896,3349.1,3348.5,2.98641]
[1737867116767,0.82692859,3349.1,3348.5,2.98641]
[1737867117009,0.82692859,3349.1,3348.4,2.98642]
[1737867117412,3.81281859,3349.1,3348.4,2.98642]
[1737867117583,3.70307045,3349.1,3348.4,2.98642]
[1737867117783,0.7896,3349.0,3348.4,2.98642]
[1737867117988,0.03732858,3348.9,3348.4,2.98642]
[1737867118387,0.7896,3349.0,3348.4,2.98642]
[1737867119117,0.03732858,3348.9,3348.4,2.98642]
[1737867119768,0.03732858,3348.9,3348.5,0.22285786]
[1737867120785,0.04395948,3348.8,3348.5,0.22285786]
[1737867121194,2.98632,3348.6,3348.5,0.22285786]
[1737867121402,0.7896,3348.5,3348.0,2.98683]
[1737867121712,0.04381791,3348.4,3348.0,2.98683]
[1737867123006,0.04381791,3348.4,3348.1,0.22288567]
[1737867123675,0.08115067,3348.4,3348.1,0.22288567]
[1737867124299,0.08115067,3348.4,3348.2,0.22288567]
[1737867125123,0.04381791,3348.4,3348.2,0.22288567]
[1737867125788,0.04381791,3348.4,3348.3,0.22288567]
[1737867126411,0.7896,3348.8,3348.5,2.98638]
[1737867126628,0.04389002,3348.7,3348.5,2.98638]
[1737867126980,0.7896,3348.8,3348.5,2.98638]
[1737867127288,0.04389002,3348.7,3348.6,2.98632]
[1737867127676,0.7896,3349.2,3348.8,2.98613]
[1737867127906,1.167125,3349.2,3348.8,2.98613]
[1737867128119,0.04410277,3349.1,3348.8,2.98613]
[1737867128325,0.04410277,3349.1,3349.0,2.98596]
[1737867128624,0.7896,3349.6,3349.1,2.98584]
[1737867128830,1.167102,3349.6,3349.1,2.98584]
[1737867128978,0.7896,3349.6,3349.1,2.98584]
[1737867129578,0.7896,3349.6,3349.0,2.98596]
[1737867130379,0.7896,3349.6,3348.9,0.22288567]
[1737867130585,0.7896,3349.6,3349.1,3.20868567]
[1737867131524,0.03732091,3349.5,3349.1,3.20868567]
[1737867131721,0.7896,3349.6,3349.1,3.20868567]
[1737867131929,3.73691,3349.9,3349.2,2.98578]
[1737867132233,1.48225746,3349.9,3349.3,2.98562]
[1737867133031,0.7517,3349.9,3349.5,2.98547]
[1737867134105,2.9848,3350.3,3349.7,2.98533]
[1737867134106,0.04452575,3349.8,3349.7,2.98533]
[1737867134564,0.7517,3350.3,3350.0,2.98505]
[1737867134909,0.04497783,3350.2,3350.0,2.98505]
[1737867135108,0.7517,3350.3,3350.0,2.98505]
[1737867135313,0.7517,3350.5,3349.8,0.7749]
[1737867135614,0.7517,3350.5,3350.1,2.9849]
[1737867135854,0.0451596,3350.4,3350.1,2.9849]
[1737867139162,0.0451596,3350.4,3350.3,7.2848]
[1737867139322,0.03484879,3350.8,3350.7,3.73445]
[1737867140616,0.03484879,3350.8,3350.3,2.98473]
[1737867140871,0.04301123,3350.7,3350.3,2.98473]
[1737867141374,0.03484879,3350.8,3350.3,2.98473]
[1737867141670,0.03484879,3350.8,3350.6,3.73454]
[1737867141671,0.04299184,3350.7,3350.6,3.73454]
[1737867142024,0.03484879,3350.8,3350.7,2.98445]
[1737867142224,0.03484879,3350.8,3350.7,5.98445]
[1737867144266,0.03484879,3350.8,3350.7,16.27445]
[1737867144468,0.03484879,3350.8,3350.7,18.94269558]
[1737867145833,0.03484879,3350.8,3350.7,18.53917233]
[1737867146038,0.03484879,3350.8,3350.7,18.73917233]
[1737867146238,8.79e-06,3350.8,3350.7,19.14269558]
[1737867147987,0.8215,3352.4,3351.8,2.98343]
[1737867148189,0.04272965,3352.3,3351.9,0.596707]
[1737867148869,0.04272965,3352.3,3351.9,3.580077]
[1737867152544,0.04272965,3352.3,3351.9,0.596707]
[1737867152969,0.04272965,3352.3,3352.1,0.55]
[1737867153215,0.04272965,3352.3,3352.2,7.80369992]
[1737867153422,0.8088,3353.5,3352.4,0.8324]
[1737867153715,0.8088,3353.1,3352.6,2.98275]
[1737867154023,0.03424857,3353.0,3352.6,2.98275]
[1737867154321,0.03424857,3353.0,3352.4,2.98292]
[1737867154615,0.03424857,3353.0,3352.5,2.9828]
[1737867155773,0.03424857,3353.0,3352.3,2.98301]
[1737867155974,0.03424857,3353.0,3352.6,2.98275]
[1737867162923,0.7932,3352.9,3352.4,2.98292]
[1737867163252,0.07172807,3352.8,3352.4,2.98292]
[1737867164238,0.07172807,3352.8,3351.8,0.7937]
[1737867164239,0.07172807,3352.8,3352.5,2.98284]
[1737867164541,0.07172807,3352.8,3351.8,3.7937]
[1737867164542,0.07172805,3352.8,3352.3,2.98296]
[1737867166255,0.45646186,3352.8,3352.1,2.98319]
[1737867166456,0.7932,3352.7,3352.2,2.98309]
[1737867166958,0.03429847,3352.6,3352.2,2.98309]
[1737867167412,0.03429847,3352.6,3352.3,2.98295]
[1737867167955,0.03429847,3352.6,3352.4,2.98292]
[1737867173220,0.03429847,3352.6,3352.2,2.98308]
[1737867173422,0.03429847,3352.6,3352.0,2.98324]
[1737867173848,0.03429847,3352.6,3352.1,2.98317]
[1737867175879,0.41904094,3352.6,3352.1,2.98317]
[1737867179221,0.03429847,3352.6,3352.1,2.98317]
[1737867179887,0.03429847,3352.6,3352.2,2.98308]
[1737867180545,0.03429847,3352.6,3352.1,2.98317]
[1737867180746,0.03429847,3352.6,3352.2,2.98311]
[1737867182656,0.03728795,3352.5,3352.0,2.98324]
[1737867182848,0.03297675,3352.4,3352.0,2.98324]
[1737867183063,0.03297675,3352.4,3351.9,2.98337]
[1737867183365,0.03297675,3352.4,3352.1,2.98319]
[1737867184226,0.03728796,3352.6,3352.1,2.98319]
[1737867184401,0.03287836,3352.3,3352.1,2.98319]
[1737867184703,0.03280743,3352.2,3352.1,2.98319]
[1737867185006,0.83048796,3352.7,3352.1,2.98319]
[1737867185204,4.55139674,3352.7,3352.1,2.98319]
[1737867185403,2.98288,3352.5,3351.9,2.98337]
[1737867185579,0.83118995,3352.4,3351.9,2.98337]
[1737867185773,0.86417214,3352.4,3351.9,2.98337]
[1737867186206,0.86417214,3352.4,3352.0,2.98327]
[1737867186413,0.82688219,3352.4,3352.0,2.98327]
[1737867188807,0.82688219,3352.4,3351.8,3.0]
[1737867189110,0.82688219,3352.4,3352.0,2.98327]
[1737867189605,0.03728993,3352.3,3352.0,2.98327]
[1737867189961,0.03289294,3352.2,3352.0,2.98327]
[1737867190176,0.03728993,3352.3,3352.0,2.98327]
[1737867190624,0.03289294,3352.2,3352.0,2.98327]
[1737867191136,0.03283986,3352.1,3352.0,2.98327]
[1737867191493,0.7939,3352.4,3352.0,2.98327]
[1737867192018,0.03293755,3352.3,3352.0,2.98327]
[1737867192222,0.03293755,3352.3,3352.0,0.596673]
[1737867192532,0.03293755,3352.3,3352.1,2.9832]
[1737867196403,0.07022745,3352.3,3351.9,2.98337]
[1737867197331,0.07022745,3352.3,3352.0,2.98329]
[1737867198045,0.03293755,3352.3,3352.0,2.98329]
[1737867198549,0.03293755,3352.3,3350.6,0.88609532]
[1737867198550,0.03293755,3352.3,3351.5,2.98366]
[1737867198849,3.01595755,3352.3,3351.7,2.98355]
[1737867199012,0.8284,3352.2,3351.7,2.98355]
[1737867199367,0.03289655,3352.1,3351.5,2.98366]
[1737867199506,0.8284,3352.0,3351.5,2.98366]
[1737867199845,0.0327343,3351.9,3351.5,2.98366]
[1737867201222,0.0327343,3351.9,3351.3,2.98389]
[1737867201450,0.0327343,3351.9,3351.2,2.984]
[1737867201651,0.0327343,3351.9,3351.4,2.9838]
[1737867202005,0.7525,3351.6,3350.7,0.7924]
[1737867202252,2.98385,3351.4,3350.7,0.7924]
[1737867202476,3.05259615,3351.3,3350.7,0.7924]
[1737867202614,0.7525,3351.2,3350.6,2.98453]
[1737867202809,0.03110334,3351.1,3350.6,2.98453]
[1737867204341,0.03110334,3351.1,3350.9,2.98424]
[1737867204849,0.0307228,3351.0,3350.9,2.98424]
[1737867205147,0.7525,3351.5,3350.9,2.98424]
[1737867205347,0.0307228,3351.0,3350.9,2.98424]
[1737867205543,0.7525,3351.5,3350.9,2.98424]
[1737867205756,3.73624,3351.5,3350.9,2.98424]
[1737867206227,0.0305243,3351.4,3350.9,2.98424]
[1737867207052,0.0305243,3351.4,3350.7,2.98443]
[1737867207246,0.0305243,3351.4,3350.8,2.98435]
[1737867207452,3.0143543,3351.4,3350.8,2.98435]
[1737867207941,3.0143543,3351.4,3350.7,0.4452992]
[1737867208330,0.0305243,3351.4,3350.7,0.4452992]
[1737867208533,2.98401,3351.2,3350.7,0.4452992]
[1737867208847,0.03065438,3351.1,3350.7,0.4452992]
[1737867209543,0.03065438,3351.1,3350.6,2.9845]
[1737867209848,3.73675,3351.0,3350.4,0.7924]
[1737867210010,0.03068358,3350.9,3350.3,2.9848]
[1737867210216,2.98428,3350.9,3350.3,2.9848]
[1737867210417,0.03063046,3350.8,3350.3,2.9848]
[1737867210618,0.03063046,3350.8,3350.3,3.961018]
[1737867211224,0.03063046,3350.8,3350.3,0.976218]
[1737867211517,0.03063046,3350.8,3350.3,3.976218]
[1737867211717,0.03063046,3350.8,3350.3,0.976218]
[1737867211718,3.01507046,3350.8,3350.3,0.976218]
[1737867211928,3.01507046,3350.8,3350.2,0.7924]
[1737867213717,0.03063046,3350.8,3350.3,3.0]
[1737867214143,3.73671,3351.0,3350.3,3.0]
[1737867214347,0.02951152,3350.7,3350.3,3.0]
[1737867214654,0.02945839,3350.6,3350.3,3.0]
[1737867214863,3.02160595,3350.9,3350.3,3.677726]
[1737867215032,0.02956464,3350.8,3350.3,3.677726]
[1737867215461,0.75511407,3350.7,3350.3,0.677726]
[1737867215665,0.02945839,3350.6,3350.2,3.0]
[1737867217727,0.02945839,3350.6,3350.2,5.98487]
[1737867219839,0.02945839,3350.6,3349.9,0.81]
[1737867220168,0.02945839,3350.6,3348.9,8.99]
[1737867220169,0.765,3350.1,3349.5,3.79551]
[1737867220534,0.80231416,3350.1,3349.5,2.98551]
[1737867220739,0.02765619,3350.0,3349.5,2.98551]
[1737867223442,0.02765619,3350.0,3349.5,3.66173]
[1737867227709,0.02765619,3350.0,3349.8,0.791]
[1737867228001,0.02765619,3350.0,3349.9,2.98516]
[1737867228243,0.8211,3350.8,3350.2,2.98489]
[1737867228647,0.0276702,3350.7,3350.2,2.98489]
[1737867229817,0.0276702,3350.7,3350.0,2.98507]
[1737867230022,0.0276702,3350.7,3350.1,0.676132]
[1737867230709,0.0276702,3350.7,3350.2,2.98487]
[1737867233136,0.0276702,3350.7,3350.4,2.9847]
[1737867233517,0.8211,3350.8,3350.4,2.9847]
[1737867233718,0.02774664,3350.6,3350.4,2.9847]
[1737867233923,0.8211,3350.8,3350.4,3.6492702]
[1737867234107,0.02844128,3350.5,3350.4,3.6492702]
[1737867234337,0.8211,3350.8,3350.4,0.6645702]
[1737867234541,0.02838305,3350.5,3350.2,2.98487]
[1737867234846,0.8211,3350.8,3350.2,2.98487]
[1737867235001,0.02820967,3350.4,3350.2,2.98487]
[1737867235208,0.8211,3350.8,3350.2,2.98487]
[1737867235741,0.02778202,3350.7,3350.2,2.98487]
[1737867235928,0.02778202,3350.7,3350.3,0.596993]
[1737867236413,0.8211,3350.8,3350.3,3.581773]
[1737867236613,0.02772888,3350.6,3350.3,2.98478]
[1737867236938,0.02765983,3350.5,3350.3,2.98478]
[1737867237298,0.8211,3350.8,3350.3,3.80018]
[1737867237499,3.01223202,3350.7,3350.1,3.80038]
[1737867237703,3.01223202,3350.7,3350.1,2.98498]
[1737867238005,0.02778202,3350.7,3350.1,2.98498]
[1737867238219,0.02778202,3350.7,3350.1,3.683433]
[1737867238444,3.80552,3350.8,3350.1,3.683433]
[1737867238658,0.02799921,3350.6,3350.1,3.683433]
[1737867238951,0.0281339,3350.5,3350.1,3.683433]
[1737867239359,3.80552,3350.8,3350.1,3.683433]
[1737867239536,0.02811638,3350.4,3350.1,3.683433]
[1737867239838,2.98459,3350.6,3350.2,0.7483983]
[1737867240043,0.79889799,3350.3,3349.9,2.98515]
[1737867240202,0.7708,3350.3,3349.9,2.98515]
[1737867240408,0.7708,3350.3,3349.8,3.0]
[1737867241021,0.7708,3350.3,3349.8,5.98522]
[1737867241235,0.7708,3350.3,3349.9,0.978593]
[1737867241438,0.02839855,3350.2,3349.9,0.978593]
[1737867241811,0.7708,3350.3,3349.9,0.978593]
[1737867242333,0.02839855,3350.2,3349.9,0.978593]
[1737867242724,0.7708,3350.3,3349.9,0.978593]
[1737867243051,0.02834542,3350.1,3349.9,0.978593]
[1737867243246,0.7708,3350.3,3349.9,0.978593]
[1737867243445,0.02829229,3350.0,3349.9,0.978593]
[1737867243945,0.7708,3350.3,3349.9,0.978593]
[1737867244245,0.02829229,3350.0,3349.9,0.978593]
[1737867244447,0.7708,3350.3,3349.8,5.98522]
[1737867244951,0.02839855,3350.2,3349.8,5.98522]
[1737867245440,0.7708,3350.3,3349.8,5.98522]
[1737867245642,0.02934124,3350.1,3349.8,5.98522]
[1737867245820,0.02939816,3350.2,3349.8,5.98522]
[1737867246146,0.7708,3350.3,3349.8,6.71398878]
[1737867246351,0.02934818,3350.1,3349.8,6.71398878]
[1737867246550,0.0294051,3350.2,3349.8,6.71398878]
[1737867246751,0.02929125,3350.0,3349.8,6.71398878]
[1737867246956,0.7708,3350.3,3349.8,6.71398878]
[1737867247115,0.02920193,3349.9,3349.8,6.71398878]
[1737867247449,0.7708,3350.3,3349.8,6.71398878]
[1737867247756,0.7708,3350.3,3349.8,5.98522]
[1737867248050,0.02937271,3350.2,3349.8,5.98522]
[1737867248568,0.02933429,3350.1,3349.8,5.98522]
[1737867249047,0.7708,3350.3,3349.8,5.98522]
[1737867249217,0.02927737,3350.0,3349.8,5.98522]
[1737867249419,0.7708,3350.3,3349.8,7.031453]
[1737867249619,0.02922044,3349.9,3349.8,5.98522]
[1737867249953,0.7708,3350.3,3349.9,2.98514]
[1737867250959,3.73614,3350.6,3349.9,2.98514]
[1737867251850,3.73614,3350.6,3349.8,5.98522]
[1737867252022,0.7516,3350.6,3350.0,2.98503]
[1737867252223,0.7516,3350.6,3349.9,2.98516]
[1737867252424,0.7516,3350.6,3350.0,2.985]
[1737867252759,2.98363,3351.7,3349.8,6.732904]
[1737867252760,2.43726901,3352.0,3349.9,1.3254]
[1737867252939,2.43726901,3352.0,3350.5,2.98462]
[1737867252940,3.7357,3351.1,3350.5,2.98462]
[1737867253123,3.77300582,3351.1,3350.5,2.98462]
[1737867254349,3.7357,3351.1,3350.5,3.581565]
[1737867254527,3.7357,3351.1,3350.6,2.98453]
[1737867254528,0.7516,3351.1,3350.6,2.98453]
[1737867255459,0.7516,3351.1,3350.5,0.596945]
[1737867255854,0.0362552,3351.0,3350.5,0.596945]
[1737867256367,0.0362552,3351.0,3350.5,3.581545]
[1737867256672,0.0362552,3351.0,3350.6,0.7341725]
[1737867257953,0.7518,3350.9,3350.3,2.98478]
[1737867258326,0.03632492,3350.8,3350.3,2.98478]
[1737867258754,0.03632492,3350.8,3350.4,2.98471]
[1737867263272,0.03632492,3350.8,3350.2,2.98489]
[1737867263428,0.03632492,3350.8,3350.2,3.660124]
[1737867263774,3.05799249,3350.8,3350.2,3.660124]
[1737867264065,3.02068492,3350.8,3350.2,3.660124]
[1737867264928,3.05799248,3350.8,3350.2,3.660124]
[1737867265128,0.7518,3350.6,3350.0,2.98505]
[1737867265456,0.7518,3350.4,3350.0,2.98505]
[1737867265670,0.7518,3350.4,3349.8,2.98522]
[1737867265875,0.03618162,3350.3,3349.8,2.98522]
[1737867266088,0.03618162,3350.3,3349.8,3.960524]
[1737867267090,0.7518,3350.2,3349.8,3.960524]
[1737867267442,0.03603672,3350.1,3349.8,3.960524]
[1737867268149,0.7518,3350.2,3349.8,3.960524]
[1737867268386,0.7518,3350.2,3349.8,2.98522]
[1737867268789,0.03603672,3350.1,3349.8,2.98522]
[1737867271094,0.7518,3350.2,3349.8,2.98522]
[1737867276793,0.7518,3350.2,3349.6,2.98542]
[1737867276995,0.7518,3350.2,3349.9,2.98515]
[1737867278212,0.7518,3350.2,3349.5,3.0]
[1737867278213,0.7518,3350.2,3349.3,0.7824]
[1737867278376,0.7518,3350.2,3349.5,3.0]
[1737867278705,0.0373141,3350.1,3349.6,2.98537]
[1737867278909,0.7682,3350.0,3349.6,2.98537]
[1737867279593,0.03731615,3349.9,3349.4,2.9856]
[1737867279898,0.03731615,3349.9,3349.1,0.7765]
[1737867280104,0.7682,3350.0,3349.4,2.98552]
[1737867280418,0.7682,3350.0,3349.2,3.44347059]
[1737867280419,0.7682,3350.0,3349.3,3.0]
[1737867280996,3.75329,3350.0,3349.4,2.98552]
[1737867281367,0.7682,3350.0,3349.4,2.98552]
[1737867283305,0.7682,3350.0,3349.5,2.98545]
[1737867283508,0.7682,3350.0,3349.3,2.98568]
[1737867283805,0.7682,3350.0,3349.3,3.661898]
[1737867284001,0.7682,3350.0,3349.5,2.98543]
[1737867284382,0.7682,3350.0,3349.4,2.9856]
[1737867284589,0.7682,3350.0,3349.6,2.9854]
[1737867285006,0.14934871,3350.9,3349.4,2.9856]
[1737867285007,0.7611,3350.4,3350.0,2.98501]
[1737867285169,0.7611,3350.4,3349.5,2.98552]
[1737867285374,0.7611,3351.5,3349.8,0.55]
[1737867285679,2.98373,3351.6,3349.8,0.55]
[1737867285680,3.74493,3351.4,3350.7,2.98436]
[1737867286082,0.7611,3351.4,3350.7,2.98436]
[1737867286284,0.7611,3351.4,3350.5,2.98461]
[1737867286285,3.358403,3351.3,3350.5,2.98461]
[1737867286693,0.7611,3351.2,3350.5,2.98461]
[1737867286898,0.7611,3351.0,3350.3,2.98478]
[1737867287804,3.74529,3351.0,3350.3,2.98478]
[1737867288009,4.45939005,3351.0,3350.3,2.98478]
[1737867289915,3.02159745,3350.9,3350.1,2.98498]
[1737867290094,0.7686,3350.8,3350.1,2.98498]
[1737867290294,0.7686,3350.8,3350.0,3.0]
[1737867290491,0.7686,3350.8,3350.2,2.98487]
[1737867292920,0.7686,3350.8,3350.3,2.9848]
[1737867295821,0.7686,3350.8,3350.4,2.98471]
[1737867296022,0.7686,3350.8,3350.5,2.98455]
[1737867297220,0.7686,3350.8,3350.3,2.9848]
[1737867298198,0.8059071,3350.8,3350.3,2.9848]
[1737867300307,0.7686,3350.8,3350.3,2.9848]
[1737867300502,0.80590742,3350.8,3350.3,2.9848]
[1737867301395,0.7686,3350.8,3350.3,2.9848]
[1737867303951,0.7686,3350.8,3350.4,2.98469]
[1737867305457,0.7686,3350.8,3350.5,2.98461]
[1737867305654,3.74065,3351.1,3350.5,2.98461]
[1737867306015,0.7565,3351.1,3350.6,2.98451]
[1737867306752,0.7565,3351.1,3350.6,2.98453]
[1737867307055,1.428937,3351.1,3350.6,2.98453]
[1737867307343,0.7565,3351.1,3350.6,2.98453]
[1737867309935,0.7565,3351.7,3351.2,2.98392]
[1737867310324,0.7565,3351.7,3350.9,0.8255]
[1737867310555,0.7565,3351.7,3351.4,2.98381]
[1737867311269,0.7565,3351.7,3351.1,2.98409]
[1737867311469,0.7697,3351.9,3351.4,2.98382]
[1737867312072,0.7697,3351.9,3351.3,2.9839]
[1737867312771,2.98313,3352.2,3351.5,2.98372]
[1737867313067,2.98295,3352.4,3351.7,2.98355]
[1737867313268,0.35809707,3352.3,3351.7,2.98355]
[1737867315573,3.75244,3352.7,3351.7,2.98355]
[1737867315792,3.75244,3352.7,3351.8,2.98347]
[1737867316086,3.75244,3352.7,3352.0,2.98328]
[1737867318181,2.98283,3352.6,3351.8,2.98341]
[1737867318389,3.0201181,3352.6,3351.8,2.98341]
[1737867318590,2.98285,3352.5,3351.8,2.98341]
[1737867319593,3.02029835,3352.4,3351.7,2.98355]
[1737867320195,2.9828,3352.6,3351.9,2.98335]
[1737867322481,3.02009018,3352.6,3352.0,2.98326]
[1737867323081,2.9828,3352.6,3352.0,2.98326]
[1737867325589,0.7697,3352.7,3352.0,2.98326]
[1737867325784,0.7697,3352.7,3352.0,3.579925]
[1737867325993,0.7697,3352.7,3352.2,2.98311]
[1737867328282,0.7697,3352.7,3352.2,2.98305]
[1737867328575,0.7697,3352.7,3352.4,2.98291]
[1737867330195,3.75238,3352.7,3352.0,3.579925]
[1737867330354,0.03728339,3352.6,3352.0,2.98326]
[1737867330968,3.75238,3352.7,3351.9,2.98338]
[1737867331165,3.75238,3352.7,3351.8,0.7666]
[1737867331395,0.7697,3352.7,3352.2,2.98308]
[1737867332194,0.7697,3352.7,3352.1,5.96627]
[1737867332517,0.7697,3352.7,3352.2,3.579737]
[1737867336365,3.75238,3352.7,3352.2,0.596627]
[1737867337769,0.7697,3352.7,3352.2,0.596627]
[1737867338770,0.7697,3352.7,3352.2,3.579727]
[1737867342590,0.7697,3352.7,3352.3,2.98301]
[1737867342930,0.7697,3352.7,3352.4,2.98293]
[1737867343420,0.8139,3352.9,3352.6,2.98274]
[1737867345602,0.8139,3352.9,3352.4,0.6562657]
[1737867345808,0.8139,3352.9,3352.4,3.6391457]
[1737867347236,0.8139,3352.9,3352.5,2.98282]
[1737867348996,0.8139,3352.9,3352.4,0.6562657]
[1737867349436,0.8139,3352.8,3352.1,2.98319]
[1737867350231,2.98267,3352.7,3352.1,2.98319]
[1737867351042,0.8139,3352.8,3352.2,2.98311]
[1737867352750,0.8139,3352.8,3352.4,2.98288]
[1737867359605,0.8139,3352.8,3352.2,2.98311]
[1737867359713,0.8139,3352.8,3352.3,0.298311]
[1737867360344,0.8139,3352.8,3352.4,2.98287]
[1737867361230,0.8139,3352.8,3352.5,2.9828]
[1737867361444,0.8139,3352.8,3352.4,2.98287]
[1737867361617,0.8139,3352.8,3352.5,2.98281]
[1737867361817,0.8139,3352.8,3352.5,3.6092091]
[1737867362019,0.8139,3352.8,3352.5,0.6263991]
[1737867362554,0.8139,3352.8,3352.4,2.98287]
[1737867365265,0.8139,3352.8,3352.4,3.79987]
[1737867365968,0.8139,3352.8,3352.4,2.98287]
[1737867366466,0.8139,3352.8,3352.2,0.817]
[1737867366630,0.8139,3352.8,3352.3,2.983]
[1737867366972,0.8139,3352.8,3352.3,3.661311]
[1737867372328,0.8139,3352.8,3352.3,2.983]
[1737867374268,0.8139,3352.8,3352.4,2.98293]
[1737867375240,0.8139,3352.8,3352.5,2.98284]
[1737867375976,0.8139,3352.8,3352.4,2.98291]
[1737867377649,0.8139,3352.8,3352.2,2.98307]
[1737867377850,0.8139,3352.8,3352.2,3.681194]
[1737867378051,0.8139,3352.8,3352.3,2.98301]
[1737867391008,0.8139,3352.8,3352.1,2.98317]
[1737867391009,0.8209,3352.6,3352.1,2.98317]
[1737867396118,0.8209,3352.6,3351.8,0.55]
[1737867396321,0.8209,3352.6,3352.2,2.98311]
[1737867396680,0.8209,3352.6,3352.3,2.98302]
[1737867396879,0.8209,3352.6,3352.4,2.98287]
[1737867397617,0.8218,3353.0,3352.5,2.98284]
[1737867398031,0.8218,3353.0,3352.3,2.98298]
[1737867398729,0.8218,3353.0,3352.4,0.8299]
[1737867399415,0.8218,3353.0,3352.4,3.8128]
[1737867400492,3.80422,3353.0,3352.4,2.9829]
[1737867400694,2.98249,3352.9,3352.2,5.98307]
[1737867401131,0.8133,3352.8,3352.2,5.98307]
[1737867401734,0.8133,3352.8,3352.3,2.98302]
[1737867402439,0.8133,3352.8,3352.4,0.68439828]
[1737867402949,0.8133,3352.8,3352.3,2.98302]
[1737867405748,0.8133,3352.8,3352.4,2.98291]
[1737867406244,0.8133,3352.8,3352.3,2.98302]
[1737867406943,0.8133,3352.8,3352.4,2.98292]
[1737867410762,0.8133,3352.8,3352.5,2.98282]
[1737867410921,0.8133,3352.8,3352.6,0.596574]
[1737867411623,2.98228,3353.2,3352.6,0.596574]
[1737867411966,0.8225,3353.1,3352.6,0.596574]
[1737867412857,0.8225,3353.1,3352.6,3.579284]
[1737867413718,0.8225,3353.1,3352.6,0.596574]
[1737867414118,3.80482,3353.1,3352.6,0.596574]
[1737867415977,3.80482,3353.1,3352.5,2.98283]
[1737867416275,0.8225,3353.1,3352.5,2.98283]
[1737867416572,0.8225,3353.1,3352.3,2.98302]
[1737867416780,0.8225,3353.1,3352.8,2.98257]
[1737867418037,0.8225,3353.1,3353.0,2.9824]
[1737867418976,0.7544,3353.6,3353.1,2.98228]
[1737867419139,0.7544,3353.6,3353.0,2.9824]
[1737867421338,0.7544,3353.6,3353.1,2.98229]
[1737867421581,0.7544,3353.6,3353.2,2.98216]
[1737867423740,0.75316404,3353.6,3353.2,2.98216]
[1737867423941,0.75316404,3353.6,3353.0,3.603938]
[1737867425155,6.71696404,3353.6,3353.0,0.621538]
[1737867425354,0.03727612,3353.5,3352.8,2.98255]
[1737867425982,2.98244,3353.0,3352.7,0.2504]
[1737867426743,2.98223,3353.2,3352.7,0.2504]
[1737867426957,0.821,3353.1,3352.7,0.2504]
[1737867427282,3.80334,3353.1,3352.7,0.2504]
[1737867428359,0.821,3353.1,3352.7,0.2504]
[1737867428838,0.821,3353.1,3352.8,2.98251]
[1737867429042,0.821,3353.5,3352.9,2.98247]
[1737867429692,0.821,3353.5,3352.8,2.98251]
[1737867429889,3.01932766,3353.4,3352.8,2.98251]
[1737867430047,0.821,3353.3,3352.8,2.98251]
[1737867430247,0.821,3353.3,3352.8,3.7121573]
[1737867432097,0.821,3353.3,3352.8,0.7296473]
[1737867432310,0.85827879,3353.3,3352.7,0.2504]
[1737867432808,0.821,3353.3,3352.7,0.2504]
[1737867433168,3.01952068,3353.2,3352.7,0.2504]
[1737867433375,0.7743,3353.1,3352.7,0.2504]
[1737867433703,0.03728065,3353.0,3352.7,0.2504]
[1737867433871,3.75663,3353.1,3352.7,0.2504]
[1737867437564,0.7743,3353.1,3352.7,0.2504]
[1737867437764,0.7743,3353.1,3352.7,0.573714]
[1737867438587,0.7743,3353.1,3352.8,2.98258]
[1737867440522,0.7743,3353.1,3352.7,0.573714]
[1737867440736,0.7743,3353.1,3352.7,3.556354]
[1737867447625,0.7743,3353.1,3352.8,0.22210179]
[1737867449252,0.7743,3353.1,3352.7,3.556354]
[1737867454443,0.7743,3353.1,3352.8,0.22210024]
[1737867456084,0.7743,3353.1,3352.7,3.556354]
[1737867459558,0.7743,3353.1,3352.8,0.22217075]
[1737867460959,0.7743,3353.1,3352.7,0.2504]
[1737867464388,0.7743,3353.1,3352.8,0.2221789]
[1737867466398,0.7743,3353.1,3352.9,0.2221789]